[Event "Titled Tuesday Blitz March 29 Late 2022"]
[White "Needleman, Alejandro"]
[Black "Vusatiuk, Vladimir"]
[WhiteFideId "100730"]
[BlackFideId "14118610"]
[WhiteElo "2269"]
[BlackElo "2157"]
[Result "0-1"]
[Round "09"]
[TimeControl "180+1"]
[Date "2022.03.30"]
[WhiteClock "0:00:18"]
[BlackClock "0:00:17"]

1. e4 {[%clk 0:03:00]}  c5 {[%clk 0:02:54]} 2. Nf3 {[%clk 0:03:00]}  e6 {[%clk 0:02:54]} 3. b4 {[%clk 0:02:58]}  cxb4 {[%clk 0:02:50]} 4. d4 {[%clk 0:02:58]}  Nf6 {[%clk 0:02:38]} 5. Bd3 {[%clk 0:02:56]}  d5 {[%clk 0:02:36]} 6. e5 {[%clk 0:02:56]}  Ne4 {[%clk 0:02:30]} 7. O-O {[%clk 0:02:56]}  Nc6 {[%clk 0:02:22]} 8. Qe1 {[%clk 0:02:55]}  b6 {[%clk 0:02:12]} 9. a3 {[%clk 0:02:48]}  Bb7 {[%clk 0:02:06]} 10. axb4 {[%clk 0:02:44]}  Nxb4 {[%clk 0:02:00]} 11. Bb5+ {[%clk 0:02:40]}  Bc6 {[%clk 0:01:59]} 12. Bxc6+ {[%clk 0:02:27]}  Nxc6 {[%clk 0:02:00]} 13. c4 {[%clk 0:02:25]}  Bb4 {[%clk 0:01:41]} 14. Qe2 {[%clk 0:02:18]}  O-O {[%clk 0:01:32]} 15. Ba3 {[%clk 0:02:10]}  a5 {[%clk 0:01:16]} 16. Bxb4 {[%clk 0:01:57]}  Nxb4 {[%clk 0:01:17]} 17. Ne1 {[%clk 0:01:42]}  h6 {[%clk 0:01:05]} 18. Ra3 {[%clk 0:01:38]}  Rc8 {[%clk 0:01:02]} 19. f3 {[%clk 0:01:27]}  Ng5 {[%clk 0:01:02]} 20. Nd2 {[%clk 0:01:26]}  dxc4 {[%clk 0:01:00]} 21. Nxc4 {[%clk 0:01:14]}  Qxd4+ {[%clk 0:00:59]} 22. Ne3 {[%clk 0:01:14]}  Nd5 {[%clk 0:00:48]} 23. Kh1 {[%clk 0:01:11]}  Qxe5 {[%clk 0:00:42]} 24. Qf2 {[%clk 0:00:54]}  Nxe3 {[%clk 0:00:41]} 25. Rxe3 {[%clk 0:00:55]}  Qd4 {[%clk 0:00:38]} 26. h4 {[%clk 0:00:46]}  Nh7 {[%clk 0:00:36]} 27. Qe2 {[%clk 0:00:45]}  Qxh4+ {[%clk 0:00:36]} 28. Kg1 {[%clk 0:00:44]}  Nf6 {[%clk 0:00:36]} 29. Nd3 {[%clk 0:00:41]}  Rfd8 {[%clk 0:00:35]} 30. Rxe6 {[%clk 0:00:35]}  fxe6 {[%clk 0:00:32]} 31. Qxe6+ {[%clk 0:00:36]}  Kh8 {[%clk 0:00:33]} 32. Ne5 {[%clk 0:00:36]}  Qd4+ {[%clk 0:00:25]} 33. Kh1 {[%clk 0:00:35]}  Rc7 {[%clk 0:00:21]} 34. Re1 {[%clk 0:00:18]}  Qh4+ {[%clk 0:00:17]} 0-1


[Site "https://www.chess.com"]

[Event "Titled Tuesday Blitz March 29 Late 2022"]
[White "Prohorov, Olexandr"]
[Black "Kozina, Anastasia"]
[WhiteFideId "14105578"]
[BlackFideId "24174017"]
[WhiteElo "1993"]
[BlackElo "1993"]
[Result "1-0"]
[Round "09"]
[TimeControl "180+1"]
[Date "2022.03.30"]
[WhiteClock "0:01:39"]
[BlackClock "0:02:12"]

1. e4 {[%clk 0:03:00]}  a6 {[%clk 0:02:58]} 2. d4 {[%clk 0:02:57]}  b5 {[%clk 0:02:58]} 3. Bd3 {[%clk 0:02:55]}  Bb7 {[%clk 0:02:58]} 4. Nf3 {[%clk 0:02:52]}  g6 {[%clk 0:02:58]} 5. O-O {[%clk 0:02:48]}  Bg7 {[%clk 0:02:58]} 6. Re1 {[%clk 0:02:38]}  d6 {[%clk 0:02:57]} 7. c4 {[%clk 0:02:32]}  bxc4 {[%clk 0:02:46]} 8. Bxc4 {[%clk 0:02:33]}  Nf6 {[%clk 0:02:46]} 9. Bxf7+ {[%clk 0:02:27]}  Kxf7 {[%clk 0:02:35]} 10. Qb3+ {[%clk 0:02:27]}  Kf8 {[%clk 0:02:31]} 11. Qxb7 {[%clk 0:02:25]}  Nbd7 {[%clk 0:02:29]} 12. Ng5 {[%clk 0:02:12]}  Ke8 {[%clk 0:02:22]} 13. Qb3 {[%clk 0:01:57]}  Rf8 {[%clk 0:02:20]} 14. Ne6 {[%clk 0:01:52]}  Qc8 {[%clk 0:02:11]} 15. Nxg7+ {[%clk 0:01:51]}  Kd8 {[%clk 0:02:12]} 16. Ne6+ {[%clk 0:01:48]}  Ke8 {[%clk 0:02:11]} 17. Nxf8 {[%clk 0:01:41]}  Kxf8 {[%clk 0:02:12]} 18. e5 {[%clk 0:01:39]} 1-0


[Site "https://www.chess.com"]

[Event "Titled Tuesday Blitz March 29 Late 2022"]
[White "Qashashvili, Alexandre"]
[Black "Terletsky, Oleg"]
[WhiteFideId "13600842"]
[BlackFideId "14116774"]
[WhiteElo "2316"]
[BlackElo "2064"]
[Result "0-1"]
[Round "09"]
[TimeControl "180+1"]
[Date "2022.03.30"]
[WhiteClock "0:00:45"]
[BlackClock "0:00:17"]

1. e4 {[%clk 0:02:54]}  e5 {[%clk 0:02:59]} 2. Nf3 {[%clk 0:02:54]}  Nc6 {[%clk 0:02:57]} 3. Bc4 {[%clk 0:02:46]}  Nf6 {[%clk 0:02:56]} 4. d3 {[%clk 0:02:46]}  h6 {[%clk 0:02:55]} 5. Nc3 {[%clk 0:02:45]}  d6 {[%clk 0:02:49]} 6. a3 {[%clk 0:02:45]}  g6 {[%clk 0:02:49]} 7. Be3 {[%clk 0:02:43]}  Bg7 {[%clk 0:02:48]} 8. h3 {[%clk 0:02:43]}  O-O {[%clk 0:02:47]} 9. Qd2 {[%clk 0:02:42]}  Kh7 {[%clk 0:02:47]} 10. O-O {[%clk 0:02:41]}  Na5 {[%clk 0:02:45]} 11. Ba2 {[%clk 0:02:40]}  c5 {[%clk 0:02:45]} 12. Nh2 {[%clk 0:02:39]}  Nh5 {[%clk 0:02:40]} 13. Nd5 {[%clk 0:02:32]}  f5 {[%clk 0:02:28]} 14. f4 {[%clk 0:02:28]}  exf4 {[%clk 0:02:25]} 15. Nxf4 {[%clk 0:02:28]}  Nxf4 {[%clk 0:02:10]} 16. Bxf4 {[%clk 0:02:22]}  g5 {[%clk 0:01:48]} 17. Bxd6 {[%clk 0:02:08]}  Qxd6 {[%clk 0:01:36]} 18. Qxa5 {[%clk 0:02:08]}  Bxb2 {[%clk 0:01:33]} 19. Rab1 {[%clk 0:02:07]}  Bd4+ {[%clk 0:01:25]} 20. Kh1 {[%clk 0:02:06]}  b6 {[%clk 0:01:24]} 21. Qa4 {[%clk 0:01:57]}  Bd7 {[%clk 0:01:19]} 22. Qb3 {[%clk 0:01:55]}  Kg7 {[%clk 0:00:35]} 23. exf5 {[%clk 0:01:49]}  Rae8 {[%clk 0:00:25]} 24. Ng4 {[%clk 0:01:42]}  Bc6 {[%clk 0:00:23]} 25. f6+ {[%clk 0:01:35]}  Kg6 {[%clk 0:00:23]} 26. f7 {[%clk 0:01:29]}  Re2 {[%clk 0:00:22]} 27. Rg1 {[%clk 0:01:15]}  Qg3 {[%clk 0:00:19]} 28. Qe6+ {[%clk 0:00:46]}  Rxe6 {[%clk 0:00:18]} 29. Bxe6 {[%clk 0:00:45]}  Qxh3+ {[%clk 0:00:17]} 0-1


[Site "https://www.chess.com"]

[Event "Titled Tuesday Blitz March 29 Late 2022"]
[White "Quintiliano Pinto, Renato R."]
[Black "Ibarra Jerez, Jose Carlos"]
[WhiteFideId "2117568"]
[BlackFideId "2226332"]
[WhiteElo "2439"]
[BlackElo "2626"]
[Result "1-0"]
[Round "09"]
[TimeControl "180+1"]
[Date "2022.03.29"]
[WhiteClock "0:00:17"]
[BlackClock "0:00:04"]

1. Nf3 {[%clk 0:03:00]}  d6 {[%clk 0:03:00]} 2. e4 {[%clk 0:02:59]}  e5 {[%clk 0:02:58]} 3. d4 {[%clk 0:02:58]}  exd4 {[%clk 0:02:59]} 4. Nxd4 {[%clk 0:02:58]}  Nf6 {[%clk 0:03:00]} 5. Nc3 {[%clk 0:02:58]}  Be7 {[%clk 0:03:00]} 6. Be2 {[%clk 0:02:58]}  O-O {[%clk 0:03:00]} 7. O-O {[%clk 0:02:59]}  Re8 {[%clk 0:03:01]} 8. f4 {[%clk 0:02:59]}  Bf8 {[%clk 0:03:01]} 9. Bf3 {[%clk 0:02:59]}  c5 {[%clk 0:03:01]} 10. Nb3 {[%clk 0:02:59]}  Nc6 {[%clk 0:03:01]} 11. Re1 {[%clk 0:02:57]}  a5 {[%clk 0:03:00]} 12. a4 {[%clk 0:02:56]}  Nb4 {[%clk 0:03:00]} 13. Nb5 {[%clk 0:02:50]}  d5 {[%clk 0:02:47]} 14. e5 {[%clk 0:02:47]}  Bf5 {[%clk 0:02:46]} 15. exf6 {[%clk 0:02:28]}  Rxe1+ {[%clk 0:02:12]} 16. Qxe1 {[%clk 0:02:29]}  Nxc2 {[%clk 0:02:12]} 17. Qf2 {[%clk 0:02:22]}  Nxa1 {[%clk 0:02:04]} 18. Nxa1 {[%clk 0:02:22]}  Qxf6 {[%clk 0:02:01]} 19. Nc7 {[%clk 0:01:41]}  Rd8 {[%clk 0:02:00]} 20. Nxd5 {[%clk 0:01:42]}  Qe6 {[%clk 0:01:57]} 21. Nc3 {[%clk 0:01:41]}  g6 {[%clk 0:01:46]} 22. Nc2 {[%clk 0:01:35]}  Bg7 {[%clk 0:01:43]} 23. h3 {[%clk 0:01:31]}  h5 {[%clk 0:01:37]} 24. Kh2 {[%clk 0:01:13]}  b6 {[%clk 0:01:31]} 25. Ne3 {[%clk 0:01:03]}  Bd4 {[%clk 0:01:29]} 26. Qh4 {[%clk 0:01:01]}  Bf6 {[%clk 0:01:19]} 27. Qg3 {[%clk 0:00:59]}  h4 {[%clk 0:01:16]} 28. Qf2 {[%clk 0:00:59]}  Bd4 {[%clk 0:01:15]} 29. Qxh4 {[%clk 0:00:57]}  Bf6 {[%clk 0:01:02]} 30. Qg3 {[%clk 0:00:56]}  Bd3 {[%clk 0:00:58]} 31. Ncd5 {[%clk 0:00:48]}  Bd4 {[%clk 0:00:53]} 32. f5 {[%clk 0:00:45]}  Qe8 {[%clk 0:00:33]} 33. Ng4 {[%clk 0:00:43]}  Rxd5 {[%clk 0:00:13]} 34. Bxd5 {[%clk 0:00:40]}  Bxf5 {[%clk 0:00:13]} 35. Nh6+ {[%clk 0:00:38]}  Kf8 {[%clk 0:00:11]} 36. Nxf5 {[%clk 0:00:38]}  gxf5 {[%clk 0:00:10]} 37. Bh6+ {[%clk 0:00:31]}  Ke7 {[%clk 0:00:10]} 38. Qc7+ {[%clk 0:00:31]}  Kf6 {[%clk 0:00:10]} 39. Qxb6+ {[%clk 0:00:26]}  Ke5 {[%clk 0:00:10]} 40. Bf3 {[%clk 0:00:26]}  Qd7 {[%clk 0:00:04]} 41. Bg7+ {[%clk 0:00:17]}  Kf4 {[%clk 0:00:04]} 42. Qh6# {[%clk 0:00:17]} 1-0


[Site "https://www.chess.com"]

[Event "Titled Tuesday Blitz March 29 Late 2022"]
[White "Sanchez Alvares, Kelvin Antonio"]
[Black "Tregubov, Pavel V."]
[WhiteFideId "3906680"]
[BlackFideId "4115341"]
[WhiteElo "2193"]
[BlackElo "2341"]
[Result "0-1"]
[Round "09"]
[TimeControl "180+1"]
[Date "2022.03.29"]
[WhiteClock "0:02:19"]
[BlackClock "0:02:24"]

1. e4 {[%clk 0:03:00]}  c5 {[%clk 0:03:00]} 2. Nf3 {[%clk 0:03:00]}  e6 {[%clk 0:03:00]} 3. d4 {[%clk 0:02:56]}  cxd4 {[%clk 0:03:00]} 4. Nxd4 {[%clk 0:02:57]}  Nc6 {[%clk 0:03:00]} 5. Nc3 {[%clk 0:02:57]}  Nf6 {[%clk 0:03:00]} 6. Nxc6 {[%clk 0:02:48]}  bxc6 {[%clk 0:02:59]} 7. Bd3 {[%clk 0:02:48]}  d5 {[%clk 0:02:58]} 8. O-O {[%clk 0:02:46]}  Be7 {[%clk 0:02:58]} 9. Qe2 {[%clk 0:02:45]}  O-O {[%clk 0:02:58]} 10. b3 {[%clk 0:02:45]}  Bb7 {[%clk 0:02:49]} 11. Bb2 {[%clk 0:02:43]}  c5 {[%clk 0:02:48]} 12. f4 {[%clk 0:02:38]}  c4 {[%clk 0:02:30]} 13. bxc4 {[%clk 0:02:30]}  Qb6+ {[%clk 0:02:27]} 14. Kh1 {[%clk 0:02:28]}  Qxb2 {[%clk 0:02:27]} 15. cxd5 {[%clk 0:02:19]}  Qxc3 {[%clk 0:02:24]} 0-1


[Site "https://www.chess.com"]

[Event "Titled Tuesday Blitz March 29 Late 2022"]
[White "Sarkar, Justin"]
[Black "Piliczewski, Bogusz"]
[WhiteFideId "2010011"]
[BlackFideId "1104144"]
[WhiteElo "2038"]
[BlackElo "1896"]
[Result "1-0"]
[Round "09"]
[TimeControl "180+1"]
[Date "2022.03.30"]
[WhiteClock "0:00:04"]
[BlackClock "0:00:03"]

1. e4 {[%clk 0:02:43]}  c6 {[%clk 0:02:58]} 2. Nf3 {[%clk 0:02:39]}  d5 {[%clk 0:02:58]} 3. Nc3 {[%clk 0:02:39]}  Bg4 {[%clk 0:02:57]} 4. h3 {[%clk 0:02:39]}  Bxf3 {[%clk 0:02:57]} 5. Qxf3 {[%clk 0:02:40]}  dxe4 {[%clk 0:02:57]} 6. Nxe4 {[%clk 0:02:38]}  e6 {[%clk 0:02:57]} 7. c3 {[%clk 0:02:22]}  Nd7 {[%clk 0:02:57]} 8. d4 {[%clk 0:02:20]}  Ngf6 {[%clk 0:02:58]} 9. Bd3 {[%clk 0:01:53]}  Be7 {[%clk 0:02:56]} 10. O-O {[%clk 0:01:50]}  Nxe4 {[%clk 0:02:39]} 11. Qxe4 {[%clk 0:01:47]}  Nf6 {[%clk 0:02:38]} 12. Qe2 {[%clk 0:01:45]}  O-O {[%clk 0:02:29]} 13. a4 {[%clk 0:01:45]}  Qc7 {[%clk 0:02:13]} 14. a5 {[%clk 0:01:43]}  a6 {[%clk 0:02:12]} 15. b4 {[%clk 0:01:39]}  Nd5 {[%clk 0:02:09]} 16. Qe4 {[%clk 0:01:29]}  g6 {[%clk 0:02:00]} 17. Bd2 {[%clk 0:01:27]}  Bf6 {[%clk 0:01:50]} 18. Rae1 {[%clk 0:01:15]}  Bg7 {[%clk 0:01:47]} 19. h4 {[%clk 0:01:10]}  Rae8 {[%clk 0:01:41]} 20. g3 {[%clk 0:00:40]}  e5 {[%clk 0:01:22]} 21. dxe5 {[%clk 0:00:22]}  Rxe5 {[%clk 0:01:16]} 22. Qf3 {[%clk 0:00:18]}  Rfe8 {[%clk 0:01:13]} 23. Rxe5 {[%clk 0:00:17]}  Bxe5 {[%clk 0:01:05]} 24. c4 {[%clk 0:00:14]}  Nf6 {[%clk 0:00:59]} 25. Re1 {[%clk 0:00:13]}  Kg7 {[%clk 0:00:48]} 26. Kg2 {[%clk 0:00:13]}  Re7 {[%clk 0:00:25]} 27. Bg5 {[%clk 0:00:11]}  Re6 {[%clk 0:00:19]} 28. c5 {[%clk 0:00:09]}  Qe7 {[%clk 0:00:15]} 29. Bc4 {[%clk 0:00:08]}  Bd4 {[%clk 0:00:11]} 30. Bxe6 {[%clk 0:00:07]}  fxe6 {[%clk 0:00:11]} 31. h5 {[%clk 0:00:06]}  Qf7 {[%clk 0:00:07]} 32. h6+ {[%clk 0:00:05]}  Kg8 {[%clk 0:00:06]} 33. Rd1 {[%clk 0:00:05]}  e5 {[%clk 0:00:04]} 34. Qxf6 {[%clk 0:00:04]}  Qxf6 {[%clk 0:00:03]} 35. Bxf6 {[%clk 0:00:04]}  Kf7 {[%clk 0:00:04]} 36. Bg7 {[%clk 0:00:04]}  Ke6 {[%clk 0:00:03]} 37. f4 {[%clk 0:00:04]}  Kd5 {[%clk 0:00:03]} 38. Bxe5 {[%clk 0:00:04]} 1-0


[Site "https://www.chess.com"]

[Event "Titled Tuesday Blitz March 29 Late 2022"]
[White "Shimanov, Aleksandr"]
[Black "Terrieux, Kevin"]
[WhiteFideId "4198603"]
[BlackFideId "622591"]
[WhiteElo "2636"]
[BlackElo "2482"]
[Result "1-0"]
[Round "09"]
[TimeControl "180+1"]
[Date "2022.03.29"]
[WhiteClock "0:00:33"]
[BlackClock "0:00:09"]

1. d4 {[%clk 0:03:00]}  d5 {[%clk 0:02:56]} 2. Nc3 {[%clk 0:02:57]}  Nf6 {[%clk 0:02:53]} 3. Bf4 {[%clk 0:02:57]}  e6 {[%clk 0:02:47]} 4. Nb5 {[%clk 0:02:56]}  Bb4+ {[%clk 0:02:44]} 5. c3 {[%clk 0:02:56]}  Ba5 {[%clk 0:02:43]} 6. b4 {[%clk 0:02:43]}  a6 {[%clk 0:02:24]} 7. Na3 {[%clk 0:02:41]}  Bb6 {[%clk 0:02:24]} 8. e3 {[%clk 0:02:41]}  a5 {[%clk 0:02:13]} 9. Nc2 {[%clk 0:02:37]}  O-O {[%clk 0:02:04]} 10. Bd3 {[%clk 0:02:35]}  Bd7 {[%clk 0:02:03]} 11. Nf3 {[%clk 0:02:31]}  Nc6 {[%clk 0:02:01]} 12. b5 {[%clk 0:02:29]}  Ne7 {[%clk 0:02:00]} 13. a4 {[%clk 0:02:28]}  Nf5 {[%clk 0:01:54]} 14. Ne5 {[%clk 0:02:27]}  Nd6 {[%clk 0:01:49]} 15. Bg5 {[%clk 0:02:24]}  Nde8 {[%clk 0:01:06]} 16. O-O {[%clk 0:02:10]}  h6 {[%clk 0:01:03]} 17. Bh4 {[%clk 0:02:10]}  c5 {[%clk 0:00:52]} 18. c4 {[%clk 0:02:02]}  Bc7 {[%clk 0:00:47]} 19. f4 {[%clk 0:01:59]}  cxd4 {[%clk 0:00:43]} 20. exd4 {[%clk 0:01:58]}  dxc4 {[%clk 0:00:42]} 21. Bxc4 {[%clk 0:01:59]}  Bd6 {[%clk 0:00:36]} 22. Ne3 {[%clk 0:01:56]}  Be7 {[%clk 0:00:35]} 23. Qd3 {[%clk 0:01:55]}  Nd6 {[%clk 0:00:29]} 24. Bb3 {[%clk 0:01:55]}  Rc8 {[%clk 0:00:29]} 25. Bxf6 {[%clk 0:01:37]}  Bxf6 {[%clk 0:00:28]} 26. Bc2 {[%clk 0:01:37]}  Nf5 {[%clk 0:00:23]} 27. g4 {[%clk 0:01:21]}  Rxc2 {[%clk 0:00:22]} 28. Nxc2 {[%clk 0:01:18]}  Nd6 {[%clk 0:00:20]} 29. Ne3 {[%clk 0:01:14]}  Bh4 {[%clk 0:00:19]} 30. Rad1 {[%clk 0:01:12]}  f5 {[%clk 0:00:19]} 31. d5 {[%clk 0:01:10]}  Ne4 {[%clk 0:00:18]} 32. dxe6 {[%clk 0:01:08]}  Bxe6 {[%clk 0:00:19]} 33. Qxd8 {[%clk 0:01:08]}  Rxd8 {[%clk 0:00:20]} 34. Nxf5 {[%clk 0:01:05]}  Bxf5 {[%clk 0:00:15]} 35. Rxd8+ {[%clk 0:01:04]}  Bxd8 {[%clk 0:00:15]} 36. gxf5 {[%clk 0:01:05]}  Nc5 {[%clk 0:00:13]} 37. Rd1 {[%clk 0:01:04]}  Bb6 {[%clk 0:00:12]} 38. Nc4 {[%clk 0:01:04]}  Bc7 {[%clk 0:00:11]} 39. b6 {[%clk 0:01:00]}  Bxf4 {[%clk 0:00:11]} 40. Rd5 {[%clk 0:00:59]}  Nxa4 {[%clk 0:00:11]} 41. Rxa5 {[%clk 0:00:59]}  Nxb6 {[%clk 0:00:10]} 42. Nxb6 {[%clk 0:00:56]}  Be3+ {[%clk 0:00:11]} 43. Kg2 {[%clk 0:00:56]}  Bxb6 {[%clk 0:00:12]} 44. Rb5 {[%clk 0:00:57]}  Bd4 {[%clk 0:00:12]} 45. Rxb7 {[%clk 0:00:57]}  Bf6 {[%clk 0:00:12]} 46. Kf3 {[%clk 0:00:57]}  h5 {[%clk 0:00:12]} 47. Ke4 {[%clk 0:00:56]}  Kh7 {[%clk 0:00:13]} 48. Rb3 {[%clk 0:00:53]}  h4 {[%clk 0:00:12]} 49. Kf4 {[%clk 0:00:52]}  Kh6 {[%clk 0:00:12]} 50. Kg4 {[%clk 0:00:52]}  g6 {[%clk 0:00:12]} 51. Rb6 {[%clk 0:00:51]}  Kg7 {[%clk 0:00:12]} 52. Rc6 {[%clk 0:00:49]}  gxf5+ {[%clk 0:00:12]} 53. Kxf5 {[%clk 0:00:49]}  Be7 {[%clk 0:00:11]} 54. Rc7 {[%clk 0:00:48]}  Kf7 {[%clk 0:00:12]} 55. h3 {[%clk 0:00:47]}  Kf8 {[%clk 0:00:12]} 56. Kg6 {[%clk 0:00:44]}  Bd8 {[%clk 0:00:11]} 57. Rh7 {[%clk 0:00:43]}  Ke8 {[%clk 0:00:11]} 58. Kf5 {[%clk 0:00:41]}  Kf8 {[%clk 0:00:11]} 59. Ke6 {[%clk 0:00:41]}  Kg8 {[%clk 0:00:12]} 60. Rd7 {[%clk 0:00:38]}  Bg5 {[%clk 0:00:11]} 61. Kf5 {[%clk 0:00:36]}  Bc1 {[%clk 0:00:11]} 62. Kg6 {[%clk 0:00:35]}  Kf8 {[%clk 0:00:12]} 63. Rd4 {[%clk 0:00:35]}  Ba3 {[%clk 0:00:09]} 64. Rxh4 {[%clk 0:00:34]}  Kg8 {[%clk 0:00:09]} 65. Ra4 {[%clk 0:00:33]} 1-0


[Site "https://www.chess.com"]

[Event "Titled Tuesday Blitz March 29 Late 2022"]
[White "Song, Guannan Terry"]
[Black "Curtis, John"]
[WhiteFideId "2614189"]
[BlackFideId "3200256"]
[WhiteElo "2115"]
[BlackElo "2203"]
[Result "1-0"]
[Round "09"]
[TimeControl "180+1"]
[Date "2022.03.30"]
[WhiteClock "0:00:56"]
[BlackClock "0:00:04"]

1. d4 {[%clk 0:03:00]}  d5 {[%clk 0:02:59]} 2. Nc3 {[%clk 0:02:58]}  c6 {[%clk 0:02:59]} 3. e4 {[%clk 0:02:55]}  dxe4 {[%clk 0:02:59]} 4. Nxe4 {[%clk 0:02:56]}  Nd7 {[%clk 0:02:57]} 5. Bd3 {[%clk 0:02:53]}  Ngf6 {[%clk 0:02:55]} 6. Ng3 {[%clk 0:02:54]}  e5 {[%clk 0:02:54]} 7. Nf3 {[%clk 0:02:50]}  exd4 {[%clk 0:02:51]} 8. O-O {[%clk 0:02:47]}  Nc5 {[%clk 0:02:48]} 9. Bg5 {[%clk 0:02:36]}  Ne6 {[%clk 0:02:37]} 10. Re1 {[%clk 0:02:26]}  Be7 {[%clk 0:02:32]} 11. Nf5 {[%clk 0:02:23]}  O-O {[%clk 0:02:11]} 12. Nxe7+ {[%clk 0:02:22]}  Qxe7 {[%clk 0:02:11]} 13. Nxd4 {[%clk 0:02:22]}  Qd8 {[%clk 0:01:52]} 14. Nxe6 {[%clk 0:02:11]}  Bxe6 {[%clk 0:01:51]} 15. Qf3 {[%clk 0:02:09]}  Bd5 {[%clk 0:01:46]} 16. Qf5 {[%clk 0:01:49]}  Be6 {[%clk 0:01:34]} 17. Bxf6 {[%clk 0:01:49]}  Bxf5 {[%clk 0:01:32]} 18. Bxd8 {[%clk 0:01:47]}  Bxd3 {[%clk 0:01:31]} 19. Be7 {[%clk 0:01:46]}  Bxc2 {[%clk 0:01:28]} 20. Bxf8 {[%clk 0:01:46]}  Kxf8 {[%clk 0:01:24]} 21. Re3 {[%clk 0:01:39]}  Bf5 {[%clk 0:01:05]} 22. Rae1 {[%clk 0:01:35]}  Be6 {[%clk 0:00:57]} 23. a3 {[%clk 0:01:34]}  Rd8 {[%clk 0:00:53]} 24. f4 {[%clk 0:01:34]}  h5 {[%clk 0:00:48]} 25. Re5 {[%clk 0:01:28]}  g6 {[%clk 0:00:46]} 26. Kf2 {[%clk 0:01:25]}  Rd4 {[%clk 0:00:42]} 27. g3 {[%clk 0:01:24]}  b6 {[%clk 0:00:27]} 28. R5e4 {[%clk 0:01:20]}  Rd3 {[%clk 0:00:25]} 29. Ke2 {[%clk 0:01:15]}  Rb3 {[%clk 0:00:23]} 30. Rb4 {[%clk 0:01:12]}  Rxb4 {[%clk 0:00:21]} 31. axb4 {[%clk 0:01:12]}  Ke7 {[%clk 0:00:21]} 32. Ke3 {[%clk 0:01:11]}  a6 {[%clk 0:00:17]} 33. Kd4 {[%clk 0:01:09]}  Kd6 {[%clk 0:00:15]} 34. Ra1 {[%clk 0:01:09]}  Bc8 {[%clk 0:00:14]} 35. Ra3 {[%clk 0:01:06]}  f6 {[%clk 0:00:13]} 36. Ra1 {[%clk 0:01:02]}  g5 {[%clk 0:00:13]} 37. fxg5 {[%clk 0:00:59]}  fxg5 {[%clk 0:00:13]} 38. Rf1 {[%clk 0:00:58]}  Ke6 {[%clk 0:00:11]} 39. Rf8 {[%clk 0:00:58]}  Bd7 {[%clk 0:00:12]} 40. Rb8 {[%clk 0:00:58]}  b5 {[%clk 0:00:10]} 41. Rh8 {[%clk 0:00:58]}  h4 {[%clk 0:00:05]} 42. gxh4 {[%clk 0:00:58]}  gxh4 {[%clk 0:00:06]} 43. Rxh4 {[%clk 0:00:57]}  Kd6 {[%clk 0:00:04]} 44. Rh6+ {[%clk 0:00:57]}  Be6 {[%clk 0:00:04]} 45. h4 {[%clk 0:00:56]} 1-0


[Site "https://www.chess.com"]

[Event "Titled Tuesday Blitz March 29 Late 2022"]
[White "Van den Dikkenberg, Erik"]
[Black "Tsukerman, Julia"]
[WhiteFideId "1005880"]
[BlackFideId "2621649"]
[WhiteElo "2118"]
[BlackElo "2130"]
[Result "1-0"]
[Round "09"]
[TimeControl "180+1"]
[Date "2022.03.30"]
[WhiteClock "0:01:40"]
[BlackClock "0:01:07"]

1. e4 {[%clk 0:03:00]}  c5 {[%clk 0:02:37]} 2. Nc3 {[%clk 0:03:00]}  d6 {[%clk 0:02:37]} 3. f4 {[%clk 0:03:01]}  Nc6 {[%clk 0:02:35]} 4. Nf3 {[%clk 0:03:01]}  Nf6 {[%clk 0:02:35]} 5. Bb5 {[%clk 0:03:00]}  e6 {[%clk 0:02:34]} 6. Bxc6+ {[%clk 0:03:00]}  bxc6 {[%clk 0:02:34]} 7. O-O {[%clk 0:03:01]}  Be7 {[%clk 0:02:25]} 8. d3 {[%clk 0:03:00]}  O-O {[%clk 0:02:25]} 9. Qe1 {[%clk 0:02:53]}  Qb6 {[%clk 0:02:24]} 10. Kh1 {[%clk 0:02:53]}  d5 {[%clk 0:02:21]} 11. e5 {[%clk 0:02:52]}  Nd7 {[%clk 0:02:21]} 12. Qg3 {[%clk 0:02:51]}  Ba6 {[%clk 0:02:13]} 13. f5 {[%clk 0:02:50]}  exf5 {[%clk 0:02:12]} 14. Bh6 {[%clk 0:02:49]}  g6 {[%clk 0:02:07]} 15. Bxf8 {[%clk 0:02:48]}  Bxf8 {[%clk 0:02:07]} 16. Rae1 {[%clk 0:02:44]}  Bg7 {[%clk 0:02:07]} 17. Ng5 {[%clk 0:02:39]}  Re8 {[%clk 0:01:55]} 18. Qh4 {[%clk 0:02:36]}  h6 {[%clk 0:01:53]} 19. Nf3 {[%clk 0:02:34]}  Nxe5 {[%clk 0:01:49]} 20. Nxe5 {[%clk 0:02:29]}  Rxe5 {[%clk 0:01:48]} 21. Rxe5 {[%clk 0:02:29]}  Bxe5 {[%clk 0:01:48]} 22. Qxh6 {[%clk 0:02:28]}  c4 {[%clk 0:01:46]} 23. Re1 {[%clk 0:02:22]}  Qf2 {[%clk 0:01:43]} 24. Qe3 {[%clk 0:02:07]}  Qxe3 {[%clk 0:01:29]} 25. Rxe3 {[%clk 0:02:07]}  Bf6 {[%clk 0:01:24]} 26. dxc4 {[%clk 0:02:03]}  Bxc4 {[%clk 0:01:20]} 27. Re8+ {[%clk 0:02:00]}  Kg7 {[%clk 0:01:20]} 28. b3 {[%clk 0:01:51]}  Ba6 {[%clk 0:01:12]} 29. Na4 {[%clk 0:01:48]}  Bb5 {[%clk 0:01:12]} 30. Nc5 {[%clk 0:01:47]}  Bd4 {[%clk 0:01:12]} 31. Nb7 {[%clk 0:01:43]}  f4 {[%clk 0:01:08]} 32. a4 {[%clk 0:01:42]}  Be2 {[%clk 0:01:07]} 33. Rxe2 {[%clk 0:01:40]} 1-0


[Site "https://www.chess.com"]